bitfinex-derivatives/quotes_ETHF0:USTF0_20250831
["timestamp","ask_amount","ask_price","bid_price","bid_amount"]
[1756643230266,3.6825,4479.8,4479.7,0.2012]
[1756643230467,0.2948,4480.1,4479.7,0.494]
[1756643230668,0.2948,4480.3,4479.8,0.2928]
[1756643230869,0.4812,4480.3,4480.2,0.494]
[1756643232371,0.4812,4480.3,4479.5,0.2928]
[1756643232372,0.1864,4480.3,4479.5,0.2928]
[1756643232574,0.4812,4479.6,4479.5,0.494]
[1756643242982,1.60647649,4481.9,4479.5,0.494]
[1756643242983,0.4812,4480.3,4480.2,0.2012]
[1756643243182,0.4812,4480.3,4480.2,0.494]
[1756643244475,0.2948,4480.6,4480.2,0.494]
[1756643244783,0.4812,4481.2,4481.1,0.2012]
[1756643246581,0.4812,4481.2,4481.1,0.494]
[1756643247883,0.4812,4481.2,4481.1,0.2012]
[1756643249081,0.4812,4481.2,4480.0,0.2928]
[1756643249283,0.4812,4479.8,4479.7,0.494]
[1756643249481,0.4812,4479.8,4479.7,0.719]
[1756643251581,0.4812,4479.8,4479.7,0.2012]
[1756643252284,0.4812,4479.8,4479.7,0.494]
[1756643255090,0.2948,4480.4,4479.8,0.2928]
[1756643256782,0.1864,4479.9,4479.8,0.494]
[1756643256981,0.4812,4479.9,4479.8,0.494]
[1756643257477,0.4812,4479.9,4479.8,0.2928]
[1756643257684,0.4812,4479.9,4479.8,0.2012]
[1756643257884,0.4812,4479.9,4479.8,0.4907]
[1756643260392,0.4756,4479.6,4479.5,0.7032]
[1756643260594,0.4756,4479.6,4479.5,0.4772]
[1756643260893,0.4756,4479.6,4479.5,0.7022]
[1756643261585,0.2741,4479.5,4479.2,0.2895]
[1756643261787,0.2015,4479.3,4479.1,0.225]
[1756643262089,0.4756,4479.2,4479.1,0.7022]
[1756643265393,0.4756,4478.7,4478.6,3.3955]
[1756643265591,0.4756,4478.7,4478.6,3.6215]
[1756643265988,0.4756,4478.7,4478.6,3.911]
[1756643266190,0.4756,4478.7,4478.2,0.2895]
[1756643266394,0.4756,4478.1,4478.0,3.2078]
[1756643266586,0.4756,4478.1,4478.0,3.4338]
[1756643267190,0.4756,4478.1,4478.0,3.911]
[1756643272598,0.2015,4478.2,4478.1,0.4772]
[1756643272797,0.4756,4478.2,4478.1,0.4772]
[1756643273194,3.2078,4479.0,4478.1,0.4772]
[1756643273399,0.2741,4478.9,4478.2,0.2895]
[1756643273695,0.2015,4478.3,4478.2,0.4772]
[1756643273999,0.4756,4478.3,4478.2,0.4772]
[1756643277400,0.2015,4478.3,4478.0,3.4338]
[1756643277594,0.4756,4478.1,4478.0,3.2078]
[1756643277893,0.4756,4478.1,4477.4,0.2895]
[1756643277894,0.4756,4477.5,4477.4,3.685]
[1756643278200,0.4756,4477.5,4477.4,3.911]
[1756643279995,0.4756,4477.5,4477.4,3.3955]
[1756643280193,0.4756,4477.5,4477.4,3.4338]
[1756643280603,3.6834,4477.5,4477.4,0.226]
[1756643280795,3.6834,4477.5,4476.7,0.2895]
[1756643280995,3.6834,4477.5,4476.8,0.226]
[1756643283604,3.6834,4477.5,4476.9,0.2895]
[1756643284693,3.6834,4477.5,4477.4,0.1877]
[1756643284898,3.6834,4477.5,4477.4,0.4772]
[1756643288003,3.2078,4477.5,4477.4,0.4772]
[1756643288503,0.2912,4477.8,4477.7,0.1931]
[1756643288700,0.4744,4477.8,4477.7,0.4838]
[1756643290200,0.4744,4477.8,4477.4,0.226]
[1756643290506,0.4744,4477.8,4477.7,0.4838]
[1756643291905,0.4744,4477.8,4477.5,0.2907]
[1756643292494,0.4744,4477.8,4477.4,0.226]
[1756643292805,0.4744,4477.8,4477.5,0.2907]
[1756643293304,0.4744,4477.8,4477.7,0.1931]
[1756643293504,0.4744,4477.8,4477.7,0.4838]
[1756643294606,0.4744,4478.5,4478.4,0.1931]
[1756643294805,0.4744,4478.5,4478.4,0.4838]
[1756643295300,0.1832,4478.5,4478.4,0.4838]
[1756643295502,0.4744,4479.0,4478.9,0.4838]
[1756643296500,0.4744,4479.5,4479.4,0.1931]
[1756643296806,0.2912,4480.1,4479.5,0.2907]
[1756643297008,0.1832,4479.6,4479.5,0.4838]
[1756643297203,0.4744,4479.6,4479.5,0.4838]
[1756643298505,0.1832,4479.6,4479.5,0.4838]
[1756643299003,0.4744,4479.8,4479.7,0.1931]
[1756643299209,0.4744,4479.8,4479.7,0.4838]
[1756643299612,3.2078,4480.2,4479.7,0.4838]
[1756643299807,3.6822,4480.2,4480.1,0.1931]
[1756643300111,0.4744,4480.2,4480.1,0.4838]
[1756643302206,0.4744,4480.7,4480.6,0.1931]
[1756643302411,0.4744,4480.7,4480.6,0.4838]
[1756643306009,3.2078,4481.3,4481.2,0.4838]
[1756643306209,0.2912,4481.4,4481.3,0.2907]
[1756643306418,0.4744,4481.4,4481.3,0.4838]
[1756643307506,0.1832,4481.4,4481.3,0.4838]
[1756643307711,0.4744,4481.4,4481.3,0.4838]
[1756643310318,0.4744,4481.4,4481.3,0.7098]
[1756643312716,3.6822,4481.4,4481.3,0.7098]
[1756643312921,0.2912,4481.7,4481.4,0.2907]
[1756643313118,0.4744,4481.7,4481.6,0.1931]
[1756643313421,0.4744,4481.7,4481.6,0.4838]
[1756643316120,0.4744,4481.7,4481.3,0.226]
[1756643316121,0.1832,4481.7,4481.3,0.226]
[1756643316322,0.1832,4481.5,4481.4,0.4838]
[1756643316518,3.2078,4481.9,4481.4,0.1931]
[1756643316724,0.4744,4482.3,4482.2,0.4838]
[1756643316923,0.4744,4482.3,4481.4,0.40159]
[1756643316924,0.1832,4481.7,4481.6,0.226]
[1756643317124,0.4744,4481.7,4481.6,0.7098]
[1756643317526,0.4744,4481.6,4481.5,0.4838]
[1756643319436,0.4744,4481.6,4481.5,0.7098]
[1756643322136,0.1832,4481.6,4480.8,3.2078]
[1756643322434,3.2078,4480.9,4479.9,0.226]
[1756643322735,0.226,4482.0,4479.9,0.7224]
[1756643322736,0.4675,4480.0,4479.9,0.7224]
[1756643323036,0.4675,4480.0,4479.9,0.226]
[1756643323634,0.4675,4480.0,4479.5,0.3018]
[1756643323635,0.2801,4479.9,4479.5,0.227]
[1756643323842,0.4675,4479.6,4479.5,0.7234]
[1756643325336,0.2801,4480.3,4479.6,0.3018]
[1756643328139,0.4675,4480.3,4480.2,0.4964]
[1756643331035,0.4675,4480.3,4480.0,0.227]
[1756643331738,0.2801,4480.2,4480.0,0.227]
[1756643331941,0.4675,4480.1,4480.0,0.227]
[1756643332139,0.1874,4480.1,4479.5,3.2078]
[1756643332442,0.4675,4479.6,4479.5,3.7042]
[1756643332741,0.4675,4479.6,4479.5,3.9312]
[1756643335239,0.2801,4480.3,4479.6,0.3018]
[1756643335543,0.4675,4480.3,4480.2,0.4964]
[1756643336140,0.4675,4480.3,4480.2,0.1946]
[1756643336938,0.4675,4480.3,4480.0,0.227]
[1756643337139,0.2801,4480.2,4480.0,0.5288]
[1756643337339,0.4675,4480.1,4480.0,0.7234]
[1756643340443,0.4675,4480.1,4480.0,0.227]
[1756643342546,0.4675,4479.3,4479.2,0.3018]
[1756643342744,0.4675,4479.3,4479.2,0.7234]
[1756643343241,0.4675,4479.3,4479.2,0.4216]
[1756643343548,0.4675,4479.3,4479.2,0.7234]
[1756643344250,0.4675,4479.3,4479.2,0.227]
[1756643346548,0.4675,4479.3,4479.2,0.4216]
[1756643346849,0.4675,4479.3,4479.2,0.7234]
[1756643350150,0.4675,4479.3,4479.2,0.4216]
[1756643350345,0.4675,4479.3,4479.2,0.227]
[1756643351348,0.4675,4479.3,4478.5,35.3458]
[1756643351349,0.41065,4479.3,4478.5,35.3458]
[1756643351546,0.5032,4478.6,4478.5,35.8707]
[1756643354149,0.3021,4479.3,4478.6,0.2979]
[1756643354450,0.2011,4478.7,4478.6,0.4843]
[1756643354654,0.5032,4478.7,4478.6,0.4843]
[1756643356754,0.3021,4478.6,4478.5,32.6629]
[1756643356949,0.5032,4478.6,4478.5,0.7113]
[1756643366760,0.5032,4479.2,4479.1,0.1864]
[1756643367060,0.5032,4479.2,4479.1,0.4843]
[1756643369065,3.711,4479.2,4479.1,0.4843]
[1756643369254,0.5032,4479.2,4479.1,0.1864]
[1756643369454,3.711,4479.2,4478.9,0.5239]
[1756643369665,0.5032,4479.0,4478.9,0.7103]
[1756643371663,0.3021,4479.6,4479.0,0.2979]
[1756643371865,0.5032,4479.6,4479.5,0.4843]
[1756643375165,0.5032,4479.6,4479.0,0.2979]
[1756643375764,0.5032,4479.6,4479.0,0.69971]
[1756643375965,0.2011,4479.1,4479.0,0.58821]
[1756643376165,0.5032,4479.1,4479.0,0.88611]
[1756643377570,0.5032,4479.1,4479.0,0.4843]
[1756643387274,3.2078,4479.7,4479.0,0.4843]
[1756643387483,0.4792,4479.6,4479.5,0.1948]
[1756643387779,0.4792,4479.6,4479.5,0.487]
[1756643388480,0.4792,4479.6,4479.2,0.5182]
[1756643388781,0.1941,4479.4,4479.3,0.2922]
[1756643388984,0.1941,4479.4,4479.3,0.1948]
[1756643389178,0.4792,4479.4,4479.3,0.487]
[1756643395181,0.4792,4479.4,4479.2,0.226]
[1756643395882,0.4792,4479.4,4479.3,0.487]
[1756643398381,3.687,4480.2,4480.1,0.1948]
[1756643398581,3.687,4480.2,4480.1,0.487]
[1756643398881,0.4792,4480.2,4480.1,0.487]
[1756643402193,3.687,4480.7,4480.6,0.1948]
[1756643402393,3.687,4480.7,4480.6,0.487]
[1756643404190,0.4792,4480.7,4480.6,0.487]
[1756643404392,3.2078,4481.2,4480.6,0.487]
[1756643404592,0.4792,4481.1,4481.0,0.487]
[1756643406191,0.2851,4481.0,4480.5,0.2922]
[1756643406493,0.1941,4480.6,4480.4,3.4338]
[1756643406694,0.4792,4480.5,4480.4,3.4338]
[1756643406997,0.4792,4480.5,4480.2,0.2922]
[1756643407192,0.2851,4480.4,4480.1,0.226]
[1756643407394,0.4792,4480.2,4480.1,0.226]
[1756643407793,0.1941,4480.2,4479.8,3.2078]
[1756643407999,0.1953,4480.0,4479.9,0.226]
[1756643408200,0.4828,4480.0,4479.9,0.704]
[1756643410699,0.2875,4480.9,4480.0,0.2799]
[1756643410896,0.51069,4480.9,4480.0,0.2799]
[1756643411096,0.2875,4480.9,4480.0,0.2799]
[1756643411502,0.4828,4480.1,4480.0,0.478]
[1756643411802,0.4828,4480.1,4480.0,0.704]
[1756643412203,3.2078,4481.0,4480.0,0.4241]
[1756643412397,0.2875,4480.8,4480.1,0.2799]
[1756643414599,0.2875,4480.8,4480.0,0.226]
[1756643414600,0.4828,4480.8,4480.7,0.478]
[1756643415001,0.2875,4480.7,4479.9,0.2799]
[1756643415201,0.4828,4480.7,4480.6,0.478]
[1756643415503,3.4031,4481.5,4481.4,0.1981]
[1756643415706,3.4031,4481.5,4481.4,0.478]
[1756643416009,3.6906,4481.5,4481.4,0.478]
[1756643417008,0.4828,4481.5,4481.4,0.478]
[1756643418206,3.6906,4481.5,4481.4,0.478]
[1756643418608,0.4828,4481.5,4481.4,0.478]
[1756643418811,3.6906,4481.5,4481.4,0.478]
[1756643419410,0.4828,4481.5,4481.4,0.478]
[1756643419707,3.6906,4481.5,4481.4,0.478]
[1756643420013,0.4828,4481.5,4481.2,0.226]
[1756643420312,0.2875,4481.4,4481.2,0.5059]
[1756643420512,0.4828,4481.3,4481.2,0.5059]
[1756643421014,0.4828,4481.3,4481.2,0.704]
[1756643421415,0.4828,4481.2,4481.1,0.226]
[1756643422012,0.4828,4481.2,4481.1,0.5059]
[1756643422208,0.4828,4481.2,4481.1,0.704]
[1756643423017,0.4828,4481.2,4480.7,0.2799]
[1756643423213,0.4828,4480.9,4480.8,0.226]
[1756643423718,0.4828,4480.2,4480.1,0.478]
[1756643424015,0.4828,4480.2,4480.1,0.704]
[1756643426415,0.1953,4480.2,4480.1,0.704]
[1756643427219,0.4828,4480.2,4480.1,0.704]
[1756643431125,0.4828,4480.2,4480.1,0.478]
[1756643431421,0.4828,4480.2,4480.1,0.226]
[1756643431721,0.2875,4480.1,4479.4,3.2078]
[1756643432024,0.226,4480.7,4478.9,3.6858]
[1756643432025,0.4828,4479.0,4478.9,3.6858]
[1756643432217,0.4828,4479.0,4478.9,3.9118]
[1756643434525,0.1953,4479.0,4478.9,3.9118]
[1756643434720,0.2875,4479.3,4478.9,3.9118]
[1756643434921,0.2875,4479.8,4479.0,0.2799]
[1756643435118,0.1953,4479.1,4479.0,0.478]
[1756643435323,0.4828,4479.1,4479.0,0.478]
[1756643437729,0.1953,4479.1,4479.0,0.478]
[1756643437919,0.2748,4479.8,4479.1,0.2888]
[1756643438129,0.49804001,4479.8,4479.2,0.226]
[1756643438327,0.1938,4479.4,4479.3,0.4729]
[1756643438628,0.4686,4479.4,4479.3,0.4729]
[1756643439427,0.4686,4479.4,4479.2,0.226]
[1756643439627,0.226,4480.5,4478.4,0.4729]
[1756643439628,0.4686,4478.5,4478.4,0.4729]
[1756643439829,0.4686,4478.5,4478.4,0.6989]
[1756643440222,0.4686,4478.5,4478.4,0.4729]
[1756643440423,0.4686,4478.5,4478.4,0.6989]
[1756643440725,0.1938,4478.5,4478.3,3.2078]
[1756643440918,0.1938,4478.5,4478.4,0.1841]
[1756643441124,0.1938,4478.5,4478.4,0.226]
[1756643441323,0.4686,4478.5,4478.4,0.226]
[1756643441725,0.4686,4478.5,4478.4,0.6989]
[1756643443831,0.4686,4478.5,4478.4,0.4729]
[1756643444024,0.4686,4478.5,4478.4,0.226]
[1756643444626,0.4686,4478.5,4478.4,0.6989]
[1756643444930,0.2748,4478.5,4478.4,0.6989]
[1756643445325,0.4686,4478.5,4478.4,0.6989]
[1756643445827,0.4686,4478.5,4478.4,0.4729]
[1756643446125,0.4686,4478.5,4478.4,0.6989]
[1756643446526,3.2078,4479.3,4479.2,0.1841]
[1756643446722,3.2078,4479.8,4479.3,0.2888]
[1756643446925,0.4686,4479.4,4479.3,0.4729]
[1756643447126,0.4686,4479.4,4479.3,0.6989]
[1756643448928,0.4686,4480.2,4480.1,0.1841]
[1756643449131,0.4686,4480.2,4480.1,0.6989]
[1756643449831,0.2748,4480.5,4480.1,0.6989]
[1756643450132,3.2078,4481.0,4480.2,0.2888]
[1756643450333,0.2748,4480.9,4480.2,0.2888]
[1756643450530,0.1938,4480.3,4480.2,0.4729]
[1756643450725,0.4686,4480.3,4480.2,0.4729]
[1756643452230,0.1938,4480.3,4480.2,0.4729]
[1756643452634,0.2748,4480.9,4480.3,0.2888]
[1756643454031,0.1938,4480.4,4480.3,0.4729]
[1756643454232,0.4686,4480.4,4480.3,0.4729]
[1756643454929,0.2748,4480.9,4480.4,0.2888]
[1756643455134,0.4686,4480.9,4480.8,0.4729]
[1756643457025,0.1938,4480.9,4480.8,0.4729]
[1756643457630,3.2078,4481.0,4480.9,0.2888]
[1756643457836,3.2078,4481.0,4480.9,0.4729]
[1756643458031,3.2078,4481.7,4480.9,0.1841]
[1756643458233,0.4686,4481.6,4481.5,0.1841]
[1756643458432,0.4686,4481.6,4481.5,0.4729]
[1756643460442,0.4686,4481.6,4481.3,0.226]
[1756643461439,0.4686,4481.6,4481.4,0.2888]
[1756643461737,0.4686,4481.6,4481.3,0.226]
[1756643462141,0.4686,4481.6,4481.0,0.2888]
[1756643462339,0.4686,4481.6,4481.1,0.226]
[1756643462641,0.4686,4481.6,4481.2,0.2888]
[1756643463445,3.2078,4481.7,4481.6,0.4729]
[1756643463743,3.6764,4481.7,4481.6,0.4729]
[1756643464641,3.4016,4481.7,4481.6,0.4729]
[1756643465447,3.4826,4481.7,4481.6,0.4729]
[1756643465845,3.2078,4481.7,4481.6,0.4729]
[1756643466638,3.6764,4481.7,4481.6,0.4729]
[1756643467843,3.4016,4481.7,4481.0,0.2917]
[1756643468141,0.1938,4481.7,4481.6,0.7105]
[1756643468449,0.48,4481.7,4481.6,0.7105]
[1756643468649,0.48,4481.7,4481.6,0.4188]
[1756643468842,3.6878,4481.7,4481.6,0.226]
[1756643471548,3.87057253,4481.7,4481.6,0.226]
[1756643471750,3.6878,4481.7,4481.6,0.226]
[1756643471950,0.48,4481.7,4481.6,0.226]
[1756643472248,3.87062306,4481.7,4481.6,0.226]
[1756643474045,0.66282306,4481.7,4481.6,0.7105]
[1756643474250,3.87070002,4481.7,4481.6,0.226]
[1756643474547,0.66290002,4481.7,4481.6,0.7105]
[1756643474748,0.66297762,4481.7,4481.6,0.7105]
[1756643475350,3.87077762,4481.7,4481.6,0.226]
[1756643476252,0.66297762,4481.7,4481.6,0.226]
[1756643476452,3.87077762,4481.7,4481.6,0.226]
[1756643477052,3.87077762,4481.7,4481.3,0.2917]
[1756643477252,0.193,4481.4,4481.3,0.1928]
[1756643477453,0.37597762,4481.4,4481.3,0.7105]
[1756643477956,0.66217762,4481.4,4481.3,0.7105]
[1756643478551,0.66217762,4481.4,4481.3,0.4188]
[1756643478756,0.66217762,4481.4,4480.6,0.2917]
[1756643478757,0.2862,4481.3,4480.6,0.2917]
[1756643478950,0.193,4480.8,4480.7,0.4188]
[1756643479156,0.4792,4480.8,4480.7,0.7105]
[1756643479359,0.4792,4480.8,4480.7,0.93368]
[1756643479552,0.4792,4480.8,4480.7,0.4845]
[1756643479759,0.4792,4480.8,4480.5,3.2078]
[1756643479760,0.2862,4480.7,4480.5,3.2078]
[1756643480056,0.4792,4480.7,4480.6,0.226]
[1756643480256,0.2862,4480.6,4480.5,3.2078]
[1756643480451,0.2862,4480.6,4480.1,0.2917]
[1756643480452,0.66273801,4480.6,4480.1,0.5177]
[1756643480657,0.4792,4480.2,4480.1,0.7105]
[1756643480857,0.66273801,4480.2,4480.1,0.7105]
[1756643482357,0.66273801,4480.2,4480.1,0.226]
[1756643482664,0.4792,4480.1,4480.0,3.2078]
[1756643482962,0.66273801,4480.1,4480.0,3.2078]
[1756643484066,0.66273801,4480.1,4479.9,0.226]
[1756643484260,2.0,4480.2,4479.9,0.226]
[1756643484261,0.37653801,4480.0,4479.9,0.7105]
[1756643484460,0.66273801,4480.0,4479.9,0.7105]
[1756643484657,0.18353801,4480.0,4479.9,0.7105]
[1756643484863,0.18368193,4480.0,4479.9,0.4188]
[1756643485161,0.2862,4481.2,4479.9,4.226]
[1756643485367,0.4792,4481.6,4480.7,0.40165]
[1756643485566,0.4792,4481.6,4480.8,3.4338]
[1756643485766,0.4792,4481.6,4480.8,0.44915999]
[1756643485967,0.4792,4481.6,4480.9,0.22315]
[1756643486566,0.4792,4481.6,4481.1,3.2078]
[1756643487365,0.4792,4481.6,4481.2,0.226]
[1756643487568,0.2862,4481.6,4481.2,0.226]
[1756643487868,0.4792,4482.1,4481.2,0.6276]
[1756643488059,0.4792,4482.1,4481.2,0.226]
[1756643490264,0.4792,4482.1,4481.6,3.2078]
[1756643490570,0.193,4481.6,4480.8,2.79693209]
[1756643490758,0.2862,4482.1,4480.9,0.227]
[1756643490962,0.2862,4481.9,4480.9,0.227]
[1756643491169,0.4792,4481.4,4481.1,3.2078]
[1756643491463,0.2862,4481.3,4481.2,3.2078]
[1756643491661,3.2078,4482.0,4481.1,3.2078]
[1756643491864,0.2862,4481.9,4481.2,3.2078]
[1756643492063,3.2078,4482.0,4481.1,3.2078]
[1756643492264,0.4792,4481.9,4481.1,3.60942]
[1756643492665,0.4792,4481.9,4481.1,0.40162]
[1756643493269,3.2078,4482.0,4480.9,0.62864]
[1756643493570,0.2862,4481.9,4480.9,0.62864]
[1756643493771,3.2078,4482.0,4481.1,0.40162]
[1756643494270,0.2862,4481.9,4481.1,0.40162]
[1756643494475,0.4792,4481.9,4481.3,3.2078]
[1756643494670,0.2862,4481.7,4481.4,0.227]
[1756643494971,0.2862,4481.7,4481.4,0.62859]
[1756643495270,0.193,4481.7,4481.4,0.62859]
[1756643495570,0.193,4481.5,4481.4,0.227]
[1756643495868,0.4792,4481.5,4481.4,3.4348]
[1756643496270,0.4792,4481.5,4481.4,0.227]
[1756643496469,3.2078,4482.0,4481.0,3.2078]
[1756643496672,0.4792,4481.2,4481.1,0.227]
[1756643497272,0.4792,4481.2,4481.1,3.4348]
[1756643497473,0.4792,4481.2,4481.1,0.227]
[1756643497873,0.471,4481.9,4481.1,4.45015999]
[1756643498070,0.2869,4481.8,4481.5,3.2078]
[1756643498370,0.2869,4481.8,4481.6,0.227]
[1756643498573,0.471,4481.7,4481.6,0.227]
[1756643499075,0.2869,4482.5,4481.8,0.40155]
[1756643499274,3.2078,4482.6,4481.8,3.2078]
[1756643499575,0.471,4481.8,4481.7,0.40156]
[1756643499772,0.2869,4481.7,4481.6,0.227]
[1756643499974,0.471,4481.7,4481.6,0.227]
[1756643500677,0.50428292,4481.7,4481.6,0.227]
[1756643501371,0.50428292,4481.7,4481.6,3.4348]
[1756643501675,0.50428292,4481.7,4481.6,0.227]
[1756643502265,0.03328292,4481.7,4481.6,0.227]
[1756643502469,0.50428292,4481.7,4481.6,0.227]
[1756643503573,0.32018292,4481.7,4481.6,0.227]
[1756643503777,0.50428292,4481.7,4481.6,0.227]
[1756643504381,0.50428292,4481.7,4481.6,3.4348]
[1756643504582,0.50428292,4481.7,4481.6,0.227]
[1756643505191,0.03328292,4481.7,4481.6,0.227]
[1756643505575,0.50428292,4481.7,4481.6,0.227]
[1756643505972,0.03328292,4481.7,4481.6,3.4348]
[1756643506174,0.03328292,4481.7,4481.6,0.227]
[1756643507369,0.32018292,4481.7,4481.6,3.4348]
[1756643507573,0.03328292,4481.7,4481.6,3.4348]
[1756643507777,0.03328292,4481.7,4481.6,0.227]
[1756643508678,0.03328292,4481.7,4481.6,3.4348]
[1756643509278,0.03328292,4481.7,4481.6,0.227]
[1756643509680,0.03328292,4481.7,4481.6,3.4348]
[1756643510079,0.03328292,4481.7,4481.6,0.227]
[1756643510783,0.32018292,4481.7,4481.6,3.4348]
[1756643511285,0.2869,4481.2,4481.1,1.434]
[1756643511478,0.2869,4481.2,4481.1,3.4348]
[1756643511682,0.03328292,4481.2,4481.1,44.2348]
[1756643511983,0.03328292,4481.2,4481.1,41.027]
[1756643512183,0.32018292,4481.2,4481.1,41.028]
[1756643513786,0.03328292,4481.2,4481.1,41.028]
[1756643513986,0.03328292,4481.2,4481.1,44.2358]
[1756643515283,0.03328292,4481.2,4481.1,41.028]
[1756643515684,0.03328292,4481.2,4481.1,44.2358]
[1756643516188,0.32018292,4481.2,4481.1,44.2358]
[1756643516382,0.32018292,4481.2,4481.1,41.028]
[1756643516588,0.03328292,4481.2,4481.1,44.2358]
[1756643516984,0.03328292,4481.2,4481.1,41.028]
[1756643517288,0.03328292,4481.2,4481.1,44.2358]
[1756643517488,0.03328292,4481.2,4481.1,41.028]
[1756643517890,0.03328292,4481.2,4481.1,44.2358]
[1756643518490,0.03328292,4481.2,4481.1,41.028]
[1756643519190,0.03328292,4481.2,4481.1,44.2358]
[1756643519792,0.03328292,4481.2,4481.1,0.228]
[1756643520293,0.03328292,4481.2,4481.1,3.4358]
[1756643520587,0.50428292,4481.2,4481.1,0.228]
[1756643520991,4.03328292,4481.2,4481.1,0.229]
[1756643521191,4.21738292,4481.2,4481.1,0.229]
[1756643521592,4.50428292,4481.2,4481.1,0.229]
[1756643523095,0.50428292,4481.2,4481.1,0.229]
[1756643524994,0.50428292,4481.2,4481.1,4.229]
[1756643524995,0.03328292,4481.2,4481.1,4.229]
[1756643525198,0.471,4482.0,4481.1,7.4368]
[1756643525397,0.1841,4481.9,4481.6,3.2078]
[1756643525601,0.1841,4481.9,4480.8,36.36193209]
[1756643525602,0.2869,4481.8,4481.7,0.229]
[1756643526001,0.471,4481.8,4481.7,0.229]
[1756643526700,0.1841,4481.4,4481.3,40.8]
[1756643526900,0.471,4481.4,4481.3,41.029]
[1756643527699,0.471,4481.4,4481.3,44.2368]
[1756643528202,0.471,4481.4,4481.3,0.229]
[1756643529405,0.471,4481.4,4481.3,3.4368]
[1756643529798,0.4684,4481.4,4481.3,3.4368]
[1756643530106,0.4684,4481.4,4481.3,0.229]
[1756643530306,0.4684,4481.4,4481.3,3.4368]
[1756643530504,0.4684,4481.4,4481.3,0.229]
[1756643530906,0.4684,4481.4,4481.3,3.4368]
[1756643531206,0.4684,4481.4,4481.3,0.229]
[1756643531403,0.4684,4481.4,4481.3,3.4368]
[1756643531600,0.275,4481.4,4481.3,3.4368]
[1756643531905,0.275,4481.4,4481.3,0.229]
[1756643532707,0.4684,4481.4,4481.3,0.229]
[1756643532908,0.4684,4481.4,4481.3,3.4368]
[1756643533404,0.4684,4481.4,4481.3,0.229]
[1756643535202,0.4684,4481.4,4480.9,40.8]
[1756643535408,0.275,4480.9,4480.8,32.131]
[1756643535602,0.275,4480.9,4480.8,32.359]
[1756643535807,0.275,4480.9,4480.8,32.36]
[1756643536100,0.275,4480.9,4480.8,32.131]
[1756643536309,0.275,4480.9,4480.8,32.36]
[1756643536703,0.275,4480.9,4480.8,32.131]
[1756643536901,0.275,4480.9,4480.8,32.359]
[1756643538406,0.275,4480.9,4480.8,32.131]
[1756643538705,0.275,4480.9,4480.8,32.359]
[1756643539705,4.275,4480.9,4480.8,32.359]
[1756643542505,0.275,4480.9,4480.8,32.359]
[1756643542714,0.275,4481.6,4481.1,0.40162]
[1756643543007,0.1934,4481.6,4481.2,0.228]
[1756643543208,0.275,4481.4,4481.2,0.228]
[1756643543706,3.2078,4481.7,4481.2,0.228]
[1756643543905,3.4012,4481.7,4481.2,0.228]
[1756643544412,0.275,4481.6,4481.2,0.228]
[1756643544808,0.275,4481.5,4481.2,0.228]
[1756643545109,3.2078,4481.7,4481.2,0.228]
[1756643545505,0.1934,4481.5,4481.2,0.228]
[1756643545704,0.275,4481.4,4481.2,0.228]
[1756643546100,0.275,4481.2,4480.9,0.40164]
[1756643546305,3.2078,4481.7,4481.0,0.228]
[1756643546306,0.275,4481.6,4481.0,0.228]
[1756643547111,0.4684,4481.6,4481.0,0.228]
[1756643550909,3.4012,4481.8,4481.1,0.40162]
[1756643551112,3.6762,4481.8,4481.2,0.228]
[1756643551514,0.4684,4481.8,4481.2,0.228]
[1756643552414,0.4684,4481.8,4481.3,3.2078]
[1756643552614,0.1934,4481.7,4481.3,3.2078]
[1756643552815,0.275,4482.2,4481.3,3.2078]
[1756643553011,0.275,4482.2,4481.2,0.228]
[1756643553212,0.1934,4481.7,4481.2,0.228]
[1756643553418,0.4684,4481.3,4481.2,0.228]
[1756643554317,0.275,4481.2,4480.8,35.3388]
[1756643554515,0.4684,4480.9,4480.8,35.3388]
[1756643554716,0.4684,4480.9,4480.8,35.5668]
[1756643555411,0.4684,4480.9,4480.8,35.3388]
[1756643555613,0.4684,4480.9,4480.8,32.359]
[1756643555812,0.1934,4480.9,4480.8,0.228]
[1756643556016,0.4684,4480.9,4480.8,0.228]
[1756643558023,3.6817,4481.2,4481.1,0.4756]
[1756643558514,0.4739,4481.2,4481.1,0.4756]
[1756643564325,0.4739,4481.2,4480.8,0.228]
[1756643565222,0.4739,4481.2,4480.9,0.275]
[1756643567424,0.4739,4481.2,4480.8,0.228]
[1756643567725,0.1856,4481.2,4480.8,0.228]
[1756643567919,0.1856,4481.1,4481.0,0.2006]
[1756643568124,0.4739,4481.1,4481.0,0.4756]
[1756643569227,0.4739,4481.1,4480.8,0.228]
[1756643570826,0.4739,4481.1,4480.5,0.275]
[1756643571027,0.4739,4481.1,4480.6,0.227]
[1756643571619,0.2883,4481.0,4480.6,0.502]
[1756643571822,0.4739,4480.7,4480.6,0.7026]
[1756643573222,0.4739,4480.7,4480.6,0.4276]
[1756643574330,0.4739,4480.7,4480.6,0.7026]